[Event "Late-Titled-Tuesday-Blitz-October-24-2023"]
[Site "Chess.com"]
[Date "2023.10.24"]
[Round "11"]
[White "iJueles"]
[Black "PapaieDudu"]
[Result "1-0"]
[WhiteElo "2475"]
[BlackElo "2336"]
[TimeControl "180+1"]
[EndTime "16:04:15 PDT"]
[Termination "iJueles won by resignation"]

1. c4 {[%clk 0:03:00.9]} 1... e6 {[%clk 0:03:00.3]} 2. Nc3 {[%clk 0:03:00.1]}
2... d5 {[%clk 0:03:01.2]} 3. cxd5 {[%clk 0:02:57.5]} 3... exd5 {[%clk
0:03:02.1]} 4. d4 {[%clk 0:02:58.1]} 4... Nf6 {[%clk 0:03:03]} 5. Bg5 {[%clk
0:02:57.9]} 5... Be7 {[%clk 0:03:03.9]} 6. e3 {[%clk 0:02:58.4]} 6... Nbd7
{[%clk 0:03:04.1]} 7. Bd3 {[%clk 0:02:59]} 7... O-O {[%clk 0:03:04.5]} 8. Qc2
{[%clk 0:02:59.5]} 8... Re8 {[%clk 0:03:05.4]} 9. Nge2 {[%clk 0:02:59.3]} 9...
h6 {[%clk 0:03:06.1]} 10. Bh4 {[%clk 0:02:58.6]} 10... Nf8 {[%clk 0:03:06.7]}
11. O-O-O {[%clk 0:02:53.3]} 11... Ne6 {[%clk 0:03:07.2]} 12. Kb1 {[%clk
0:02:52.9]} 12... c6 {[%clk 0:03:05.5]} 13. Rhg1 {[%clk 0:02:51.3]} 13... b5
{[%clk 0:03:06.2]} 14. g4 {[%clk 0:02:51.1]} 14... a5 {[%clk 0:03:06.5]} 15. g5
{[%clk 0:02:36.1]} 15... hxg5 {[%clk 0:03:06.3]} 16. Bxg5 {[%clk 0:02:37]} 16...
Nxg5 {[%clk 0:03:07.2]} 17. Rxg5 {[%clk 0:02:37.1]} 17... Ne4 {[%clk 0:03:06.7]}
18. Rg2 {[%clk 0:02:34]} 18... f5 {[%clk 0:03:00.8]} 19. Rdg1 {[%clk 0:02:32.5]}
19... Bf6 {[%clk 0:03:00.2]} 20. Nf4 {[%clk 0:02:30.6]} 20... a4 {[%clk
0:02:50]} 21. Nh5 {[%clk 0:02:28.3]} 21... Ra7 {[%clk 0:02:45.3]} 22. Ne2 {[%clk
0:02:17.6]} 22... b4 {[%clk 0:02:43.9]} 23. Bxe4 {[%clk 0:02:15.8]} 23... fxe4
{[%clk 0:02:40.9]} 24. Qxc6 {[%clk 0:02:15.9]} 24... Re6 {[%clk 0:02:35.1]} 25.
Qc5 {[%clk 0:02:03.7]} 25... Ra5 {[%clk 0:02:30.7]} 26. Nxf6+ {[%clk 0:01:58.3]}
26... Kh8 {[%clk 0:02:11.5]} 27. Rxg7 {[%clk 0:01:54.9]} 27... Rxf6 {[%clk
0:02:10.3]} 28. Rg8+ {[%clk 0:01:48.1]} 28... Qxg8 {[%clk 0:02:10.1]} 29. Rxg8+
{[%clk 0:01:49]} 29... Kxg8 {[%clk 0:02:09.1]} 30. Qxa5 {[%clk 0:01:45.7]} 30...
Ba6 {[%clk 0:02:06]} 31. Qxd5+ {[%clk 0:01:44.8]} 31... Kg7 {[%clk 0:02:05.5]}
32. Nf4 {[%clk 0:01:45.1]} 32... Rh6 {[%clk 0:01:51.9]} 33. Qg5+ {[%clk
0:01:42]} 33... Kh7 {[%clk 0:01:52]} 34. Qe7+ {[%clk 0:01:42.2]} 34... Kh8
{[%clk 0:01:52.6]} 35. Qf8+ {[%clk 0:01:39.6]} 35... Kh7 {[%clk 0:01:52.7]} 36.
Qf7+ {[%clk 0:01:40.1]} 36... Kh8 {[%clk 0:01:53.1]} 37. Ng6+ {[%clk 0:01:40.7]}
37... Rxg6 {[%clk 0:01:53.6]} 38. Qxg6 {[%clk 0:01:41.1]} 38... Bd3+ {[%clk
0:01:52.6]} 39. Kc1 {[%clk 0:01:41.8]} 39... b3 {[%clk 0:01:52.2]} 40. axb3
{[%clk 0:01:41.3]} 40... axb3 {[%clk 0:01:53.1]} 41. Kd2 {[%clk 0:01:40.6]}
41... Bc2 {[%clk 0:01:51.9]} 42. Qc6 {[%clk 0:01:40.4]} 42... Bd3 {[%clk
0:01:52.8]} 43. Qc3 {[%clk 0:01:40.4]} 43... Bc4 {[%clk 0:01:53.7]} 44. Qxc4
{[%clk 0:01:40.4]} 44... Kg7 {[%clk 0:01:54.1]} 45. Qxb3 {[%clk 0:01:40.7]}
45... Kf6 {[%clk 0:01:55]} 46. Qd5 {[%clk 0:01:40.9]} 46... Kg6 {[%clk 0:01:55]}
47. b4 {[%clk 0:01:41.5]} 47... Kg7 {[%clk 0:01:55.4]} 48. b5 {[%clk 0:01:42.4]}
48... Kf6 {[%clk 0:01:56.3]} 49. b6 {[%clk 0:01:43.3]} 49... Kg7 {[%clk
0:01:57.2]} 50. b7 {[%clk 0:01:44.2]} 50... Kf8 {[%clk 0:01:58.1]} 51. b8=Q+
{[%clk 0:01:44.6]} 1-0

[Event "Late-Titled-Tuesday-Blitz-October-24-2023"]
[Site "Chess.com"]
[Date "2023.10.24"]
[Round "11"]
[White "Chempiblinka"]
[Black "whiteglovethief"]
[Result "1-0"]
[WhiteElo "2354"]
[BlackElo "2501"]
[TimeControl "180+1"]
[EndTime "16:04:28 PDT"]
[Termination "Chempiblinka won by resignation"]

1. Nf3 {[%clk 0:03:00.6]} 1... d5 {[%clk 0:02:58.3]} 2. g3 {[%clk 0:03:00.1]}
2... c6 {[%clk 0:02:56.9]} 3. c4 {[%clk 0:02:58.6]} 3... Nf6 {[%clk 0:02:53.2]}
4. Bg2 {[%clk 0:02:58.4]} 4... g6 {[%clk 0:02:53]} 5. O-O {[%clk 0:02:58]} 5...
dxc4 {[%clk 0:02:52.4]} 6. Na3 {[%clk 0:02:32.9]} 6... b5 {[%clk 0:02:50.2]} 7.
Ne5 {[%clk 0:02:32.8]} 7... Nd5 {[%clk 0:02:48.8]} 8. d4 {[%clk 0:02:11]} 8...
cxd3 {[%clk 0:02:45.4]} 9. Qxd3 {[%clk 0:02:04]} 9... Bg7 {[%clk 0:02:40.8]} 10.
Nxc6 {[%clk 0:01:54]} 10... Nxc6 {[%clk 0:02:41.7]} 11. Bxd5 {[%clk 0:01:48]}
11... Nb4 {[%clk 0:02:32.2]} 12. Qxb5+ {[%clk 0:01:46.6]} 12... Bd7 {[%clk
0:02:23]} 13. Qxb4 {[%clk 0:01:44.5]} 13... Rb8 {[%clk 0:02:23.6]} 14. Qh4
{[%clk 0:01:30.8]} 14... O-O {[%clk 0:02:18.9]} 15. Bb3 {[%clk 0:01:22]} 15...
Bb5 {[%clk 0:02:13.9]} 16. Nxb5 {[%clk 0:01:21]} 16... Rxb5 {[%clk 0:02:13.1]}
17. Bg5 {[%clk 0:01:16.3]} 17... Qb6 {[%clk 0:01:54.3]} 18. Bxe7 {[%clk
0:01:10.2]} 18... Re8 {[%clk 0:01:53.5]} 19. Rac1 {[%clk 0:00:56.6]} 19... Rh5
{[%clk 0:01:46.3]} 20. Qb4 {[%clk 0:00:44.2]} 20... Qa6 {[%clk 0:01:46.4]} 21.
Bc4 {[%clk 0:00:39.8]} 21... Qc8 {[%clk 0:01:44.3]} 22. Bxf7+ {[%clk 0:00:38.2]}
1-0

[Event "Late-Titled-Tuesday-Blitz-October-24-2023"]
[Site "Chess.com"]
[Date "2023.10.24"]
[Round "11"]
[White "ContrVersia"]
[Black "mishanick"]
[Result "0-1"]
[WhiteElo "2871"]
[BlackElo "3052"]
[TimeControl "180+1"]
[EndTime "16:04:31 PDT"]
[Termination "mishanick won by resignation"]

1. Nf3 {[%clk 0:03:00.9]} 1... d5 {[%clk 0:02:59.9]} 2. c4 {[%clk 0:03:01.1]}
2... e6 {[%clk 0:02:58.7]} 3. b3 {[%clk 0:03:01.2]} 3... d4 {[%clk 0:02:57.6]}
4. e3 {[%clk 0:03:01.1]} 4... c5 {[%clk 0:02:57.5]} 5. exd4 {[%clk 0:03:01.9]}
5... cxd4 {[%clk 0:02:58.4]} 6. g3 {[%clk 0:03:02.7]} 6... Nc6 {[%clk
0:02:58.5]} 7. Bg2 {[%clk 0:03:03.4]} 7... Bd6 {[%clk 0:02:58.1]} 8. O-O {[%clk
0:03:03]} 8... Nf6 {[%clk 0:02:57.5]} 9. d3 {[%clk 0:03:02.2]} 9... O-O {[%clk
0:02:57.4]} 10. Bg5 {[%clk 0:03:01.6]} 10... h6 {[%clk 0:02:56.7]} 11. Bxf6
{[%clk 0:03:01.8]} 11... Qxf6 {[%clk 0:02:57.6]} 12. Nbd2 {[%clk 0:03:02.5]}
12... Qe7 {[%clk 0:02:56.8]} 13. Re1 {[%clk 0:02:57]} 13... f5 {[%clk
0:02:48.3]} 14. Qc1 {[%clk 0:02:37.7]} 14... Ba3 {[%clk 0:02:46]} 15. Qc2 {[%clk
0:02:37.7]} 15... Qd6 {[%clk 0:02:23.1]} 16. h4 {[%clk 0:02:22.8]} 16... Bd7
{[%clk 0:02:20.5]} 17. Nh2 {[%clk 0:02:12.8]} 17... Kh8 {[%clk 0:02:03.1]} 18.
Re2 {[%clk 0:02:10.4]} 18... e5 {[%clk 0:02:00.5]} 19. Rae1 {[%clk 0:02:08.4]}
19... Rae8 {[%clk 0:02:00.9]} 20. Bd5 {[%clk 0:02:03.5]} 20... Nb4 {[%clk
0:01:59.6]} 21. Qb1 {[%clk 0:02:01.3]} 21... Nxd5 {[%clk 0:02:00]} 22. cxd5
{[%clk 0:02:01.6]} 22... Qxd5 {[%clk 0:02:00.9]} 23. Nc4 {[%clk 0:02:01.8]}
23... Bc6 {[%clk 0:01:59.1]} 24. f3 {[%clk 0:02:00.5]} 24... Bd6 {[%clk
0:01:55.7]} 25. Nxd6 {[%clk 0:01:52.6]} 25... Qxd6 {[%clk 0:01:55.9]} 26. Kg2
{[%clk 0:01:47.8]} 26... e4 {[%clk 0:01:55]} 27. dxe4 {[%clk 0:01:39.2]} 27...
fxe4 {[%clk 0:01:55.9]} 28. fxe4 {[%clk 0:01:38.9]} 28... d3 {[%clk 0:01:56.1]}
29. Re3 {[%clk 0:01:35.8]} 29... d2 {[%clk 0:01:55.7]} 30. Rd1 {[%clk
0:01:35.6]} 30... Rxe4 {[%clk 0:01:51.5]} 31. Rxe4 {[%clk 0:01:34]} 31... Qe6
{[%clk 0:01:47.1]} 0-1

[Event "Late-Titled-Tuesday-Blitz-October-24-2023"]
[Site "Chess.com"]
[Date "2023.10.24"]
[Round "11"]
[White "FM_Kappeler"]
[Black "Yushko_Olga"]
[Result "1-0"]
[WhiteElo "2282"]
[BlackElo "2136"]
[TimeControl "180+1"]
[EndTime "16:05:10 PDT"]
[Termination "FM_Kappeler won by resignation"]

1. d4 {[%clk 0:03:00.9]} 1... e6 {[%clk 0:02:59.6]} 2. c4 {[%clk 0:03:00.2]}
2... f5 {[%clk 0:03:00.1]} 3. Nf3 {[%clk 0:02:59.5]} 3... Nf6 {[%clk 0:03:00.5]}
4. g3 {[%clk 0:02:59.4]} 4... d6 {[%clk 0:03:00.6]} 5. Bg2 {[%clk 0:02:59.1]}
5... Be7 {[%clk 0:03:01.3]} 6. O-O {[%clk 0:02:58.9]} 6... O-O {[%clk
0:03:01.9]} 7. Nc3 {[%clk 0:02:55.7]} 7... Qe8 {[%clk 0:03:01.4]} 8. b3 {[%clk
0:02:53.6]} 8... Nc6 {[%clk 0:02:59.5]} 9. Bb2 {[%clk 0:02:50.9]} 9... Bd7
{[%clk 0:02:58.1]} 10. Qc2 {[%clk 0:02:38.6]} 10... Qg6 {[%clk 0:02:53.8]} 11.
d5 {[%clk 0:02:29.2]} 11... Nb4 {[%clk 0:02:50.7]} 12. Qd2 {[%clk 0:02:25.4]}
12... e5 {[%clk 0:02:48.3]} 13. Nb5 {[%clk 0:02:21.3]} 13... Na6 {[%clk
0:02:46.1]} 14. Rac1 {[%clk 0:02:07.3]} 14... Ne4 {[%clk 0:02:45.1]} 15. Qa5
{[%clk 0:01:53.1]} 15... Bd8 {[%clk 0:02:30.5]} 16. Qe1 {[%clk 0:01:30.2]} 16...
c6 {[%clk 0:02:28.4]} 17. dxc6 {[%clk 0:01:29]} 17... bxc6 {[%clk 0:02:29.3]}
18. Nc3 {[%clk 0:01:28.5]} 18... Nac5 {[%clk 0:02:26.2]} 19. Nxe4 {[%clk
0:01:23.9]} 19... Nxe4 {[%clk 0:02:22.5]} 20. Nd2 {[%clk 0:01:23.8]} 20... Nxd2
{[%clk 0:02:07.1]} 21. Qxd2 {[%clk 0:01:23.8]} 21... Be7 {[%clk 0:02:01.6]} 22.
Rfd1 {[%clk 0:01:16.1]} 22... Rad8 {[%clk 0:01:55.7]} 23. Qa5 {[%clk 0:01:12.8]}
23... f4 {[%clk 0:01:49.4]} 24. Qxa7 {[%clk 0:01:04.7]} 24... h5 {[%clk
0:01:43.3]} 25. Qc7 {[%clk 0:00:47.8]} 25... h4 {[%clk 0:01:38.9]} 26. gxh4
{[%clk 0:00:34.1]} 26... Bh3 {[%clk 0:01:31.4]} 27. Qxc6 {[%clk 0:00:32.7]}
27... d5 {[%clk 0:01:31.3]} 28. Qxg6 {[%clk 0:00:32.2]} 1-0

[Event "Late-Titled-Tuesday-Blitz-October-24-2023"]
[Site "Chess.com"]
[Date "2023.10.24"]
[Round "11"]
[White "effefe"]
[Black "ural58"]
[Result "0-1"]
[WhiteElo "2342"]
[BlackElo "2512"]
[TimeControl "180+1"]
[EndTime "16:05:24 PDT"]
[Termination "ural58 won on time"]

1. d4 {[%clk 0:03:00.9]} 1... d5 {[%clk 0:02:57.2]} 2. c4 {[%clk 0:03:00.1]}
2... e5 {[%clk 0:02:56.7]} 3. cxd5 {[%clk 0:02:58.2]} 3... Qxd5 {[%clk
0:02:56.1]} 4. e3 {[%clk 0:02:56.6]} 4... exd4 {[%clk 0:02:55.5]} 5. exd4 {[%clk
0:02:55.8]} 5... Nc6 {[%clk 0:02:50.6]} 6. Nf3 {[%clk 0:02:54.4]} 6... Bg4
{[%clk 0:02:50.5]} 7. Be3 {[%clk 0:02:54.4]} 7... Bxf3 {[%clk 0:02:49.1]} 8.
Qxf3 {[%clk 0:02:52.9]} 8... Qxf3 {[%clk 0:02:49.2]} 9. gxf3 {[%clk 0:02:53.8]}
9... O-O-O {[%clk 0:02:47.2]} 10. Bc4 {[%clk 0:02:38.5]} 10... Nxd4 {[%clk
0:02:41.1]} 11. Bxd4 {[%clk 0:02:25.8]} 11... Rxd4 {[%clk 0:02:40.8]} 12. Bxf7
{[%clk 0:02:25.8]} 12... Bb4+ {[%clk 0:02:39.6]} 13. Nc3 {[%clk 0:02:25.1]}
13... Bxc3+ {[%clk 0:02:38.6]} 14. bxc3 {[%clk 0:02:25.1]} 14... Rf4 {[%clk
0:02:33.2]} 15. Be6+ {[%clk 0:02:16.7]} 15... Kb8 {[%clk 0:02:32.9]} 16. Rg1
{[%clk 0:02:01.2]} 16... Nf6 {[%clk 0:02:29.7]} 17. Rxg7 {[%clk 0:01:21.6]}
17... Re8 {[%clk 0:02:28.6]} 18. O-O-O {[%clk 0:01:22.1]} 18... Rxf3 {[%clk
0:02:16]} 19. Re7 {[%clk 0:01:16.4]} 19... Rh8 {[%clk 0:02:12.3]} 20. Rd2 {[%clk
0:00:51.8]} 20... a6 {[%clk 0:02:06.9]} 21. Kb2 {[%clk 0:00:49.7]} 21... Ne4
{[%clk 0:02:05.8]} 22. Rdd7 {[%clk 0:00:42.5]} 22... Rxf2+ {[%clk 0:02:04.7]}
23. Ka3 {[%clk 0:00:35]} 23... Nxc3 {[%clk 0:02:01]} 24. Bc4 {[%clk 0:00:32.2]}
24... Rc8 {[%clk 0:01:55.2]} 25. Rxh7 {[%clk 0:00:30.3]} 25... b5 {[%clk
0:01:55.4]} 26. Bb3 {[%clk 0:00:26.9]} 26... Kb7 {[%clk 0:01:51.6]} 27. Rd3
{[%clk 0:00:16.2]} 27... Nb1+ {[%clk 0:01:50.8]} 28. Kb4 {[%clk 0:00:15.3]}
28... Kb6 {[%clk 0:01:51.4]} 29. Rh6+ {[%clk 0:00:13.1]} 29... c6 {[%clk
0:01:51.6]} 30. Be6 {[%clk 0:00:06.2]} 30... Rb2+ {[%clk 0:01:44.7]} 0-1

[Event "Late-Titled-Tuesday-Blitz-October-24-2023"]
[Site "Chess.com"]
[Date "2023.10.24"]
[Round "11"]
[White "MajorCoast"]
[Black "acertijo08"]
[Result "0-1"]
[WhiteElo "2243"]
[BlackElo "2363"]
[TimeControl "180+1"]
[EndTime "16:05:26 PDT"]
[Termination "acertijo08 won by checkmate"]

1. d4 {[%clk 0:03:00.9]} 1... Nf6 {[%clk 0:02:59.6]} 2. c3 {[%clk 0:03:01.3]}
2... e6 {[%clk 0:02:59.5]} 3. Bf4 {[%clk 0:03:01.5]} 3... d5 {[%clk 0:02:59.7]}
4. e3 {[%clk 0:03:01.6]} 4... c5 {[%clk 0:03:00]} 5. Nd2 {[%clk 0:03:00.3]} 5...
Nc6 {[%clk 0:03:00.5]} 6. Bd3 {[%clk 0:03:00.1]} 6... Bd6 {[%clk 0:03:00.7]} 7.
Bg3 {[%clk 0:02:59.9]} 7... O-O {[%clk 0:03:00.9]} 8. Ngf3 {[%clk 0:03:00.1]}
8... b6 {[%clk 0:03:00.9]} 9. e4 {[%clk 0:02:59.6]} 9... Be7 {[%clk 0:02:58.4]}
10. e5 {[%clk 0:02:59.3]} 10... Nh5 {[%clk 0:02:58.6]} 11. Ng5 {[%clk
0:02:58.5]} 11... Bxg5 {[%clk 0:02:50]} 12. Qxh5 {[%clk 0:02:55.6]} 12... g6
{[%clk 0:02:35.9]} 13. Qg4 {[%clk 0:02:55.8]} 13... cxd4 {[%clk 0:02:34.3]} 14.
h4 {[%clk 0:02:49.5]} 14... Bxd2+ {[%clk 0:02:33.3]} 15. Kxd2 {[%clk 0:02:44.2]}
15... dxc3+ {[%clk 0:02:32.9]} 16. bxc3 {[%clk 0:02:43.6]} 16... f5 {[%clk
0:02:29.9]} 17. Qf4 {[%clk 0:02:36.7]} 17... d4 {[%clk 0:02:21.4]} 18. c4 {[%clk
0:02:34.2]} 18... Qe7 {[%clk 0:02:19.2]} 19. Qh6 {[%clk 0:02:18.1]} 19... Qb4+
{[%clk 0:02:16.4]} 20. Ke2 {[%clk 0:02:14.7]} 20... Qb2+ {[%clk 0:02:13.8]} 21.
Qd2 {[%clk 0:01:48.4]} 21... Qxd2+ {[%clk 0:02:11.5]} 22. Kxd2 {[%clk
0:01:49.3]} 22... Bb7 {[%clk 0:02:11.9]} 23. f4 {[%clk 0:01:43.1]} 23... Nb4
{[%clk 0:02:06.9]} 24. h5 {[%clk 0:01:33.9]} 24... Bxg2 {[%clk 0:02:03]} 25.
Rhg1 {[%clk 0:01:33.4]} 25... Be4 {[%clk 0:01:59.5]} 26. Bxe4 {[%clk 0:01:27]}
26... fxe4 {[%clk 0:01:59.5]} 27. hxg6 {[%clk 0:01:27.9]} 27... e3+ {[%clk
0:01:57.7]} 28. Ke2 {[%clk 0:01:25.1]} 28... hxg6 {[%clk 0:01:57.4]} 29. Bh4
{[%clk 0:01:23.9]} 29... Rxf4 {[%clk 0:01:45.8]} 30. Be1 {[%clk 0:00:57.4]}
30... Nc2 {[%clk 0:01:37]} 31. Rc1 {[%clk 0:00:50.6]} 31... Nxe1 {[%clk
0:01:35.3]} 32. Rcxe1 {[%clk 0:00:50.6]} 32... Rf2+ {[%clk 0:01:33.9]} 33. Kd3
{[%clk 0:00:49.9]} 33... Rd2+ {[%clk 0:01:34.2]} 34. Ke4 {[%clk 0:00:50.2]}
34... Kg7 {[%clk 0:01:31.6]} 35. Rg3 {[%clk 0:00:44.5]} 35... Rh8 {[%clk
0:01:18.4]} 36. Reg1 {[%clk 0:00:42.4]} 36... Rh4+ {[%clk 0:01:18.1]} 37. Kf3
{[%clk 0:00:39.3]} 37... Rf2# {[%clk 0:01:17.6]} 0-1

[Event "Late-Titled-Tuesday-Blitz-October-24-2023"]
[Site "Chess.com"]
[Date "2023.10.24"]
[Round "11"]
[White "DvaHrasta"]
[Black "zivicd"]
[Result "1-0"]
[WhiteElo "2501"]
[BlackElo "2241"]
[TimeControl "180+1"]
[EndTime "16:05:30 PDT"]
[Termination "DvaHrasta won by resignation"]

1. c4 {[%clk 0:03:00.9]} 1... Nf6 {[%clk 0:02:55.8]} 2. g3 {[%clk 0:03:00.8]}
2... e5 {[%clk 0:02:48.1]} 3. Bg2 {[%clk 0:03:00.7]} 3... d5 {[%clk 0:02:45.4]}
4. cxd5 {[%clk 0:03:00]} 4... Nxd5 {[%clk 0:02:46.3]} 5. Nf3 {[%clk 0:02:59.6]}
5... Nc6 {[%clk 0:02:45.5]} 6. O-O {[%clk 0:02:59.3]} 6... Be7 {[%clk
0:02:45.1]} 7. d4 {[%clk 0:02:59]} 7... e4 {[%clk 0:02:37]} 8. Ne5 {[%clk
0:02:58.9]} 8... Nxe5 {[%clk 0:02:22.1]} 9. dxe5 {[%clk 0:02:58.4]} 9... f5
{[%clk 0:02:21.1]} 10. exf6 {[%clk 0:02:55.5]} 10... Nxf6 {[%clk 0:02:20.3]} 11.
Qb3 {[%clk 0:02:54.4]} 11... c6 {[%clk 0:01:43.6]} 12. Nc3 {[%clk 0:02:52.1]}
12... Qb6 {[%clk 0:01:22]} 13. Qxb6 {[%clk 0:02:48.2]} 13... axb6 {[%clk
0:01:22.9]} 14. Nxe4 {[%clk 0:02:48.2]} 14... Nxe4 {[%clk 0:01:20.9]} 15. Bxe4
{[%clk 0:02:48.1]} 15... Bh3 {[%clk 0:01:18.9]} 16. Rd1 {[%clk 0:02:44.6]} 16...
O-O {[%clk 0:01:16.6]} 17. Be3 {[%clk 0:02:38.4]} 17... Bf6 {[%clk 0:01:13.3]}
18. Rd2 {[%clk 0:02:30.7]} 18... Rae8 {[%clk 0:01:12.5]} 19. Bf3 {[%clk
0:02:26.1]} 19... b5 {[%clk 0:00:55.7]} 20. Rad1 {[%clk 0:02:22.1]} 20... Ra8
{[%clk 0:00:52]} 21. a3 {[%clk 0:02:20.9]} 21... Ra4 {[%clk 0:00:46.7]} 22. Bc5
{[%clk 0:02:12.6]} 22... Re8 {[%clk 0:00:40.8]} 23. Bg2 {[%clk 0:02:09.6]} 23...
Bf5 {[%clk 0:00:32.9]} 24. h3 {[%clk 0:02:07.4]} 24... Rc4 {[%clk 0:00:31.5]}
25. b4 {[%clk 0:02:00.2]} 25... Be6 {[%clk 0:00:20.6]} 26. e4 {[%clk 0:01:55.3]}
26... h5 {[%clk 0:00:15.1]} 27. f4 {[%clk 0:01:54.2]} 27... Bc3 {[%clk
0:00:14.9]} 28. Rd6 {[%clk 0:01:49.7]} 28... Bf7 {[%clk 0:00:13.8]} 29. Rd7
{[%clk 0:01:43]} 29... Bb2 {[%clk 0:00:12.9]} 30. Rxb7 {[%clk 0:01:37]} 30...
Bxa3 {[%clk 0:00:09.8]} 31. Rdd7 {[%clk 0:01:36.7]} 31... Bxb4 {[%clk
0:00:04.4]} 1-0

[Event "Late-Titled-Tuesday-Blitz-October-24-2023"]
[Site "Chess.com"]
[Date "2023.10.24"]
[Round "11"]
[White "R2D2PTY"]
[Black "ExchangeAB"]
[Result "1-0"]
[WhiteElo "2309"]
[BlackElo "2465"]
[TimeControl "180+1"]
[EndTime "16:05:31 PDT"]
[Termination "R2D2PTY won by checkmate"]

1. e4 {[%clk 0:02:55.6]} 1... c6 {[%clk 0:03:00.9]} 2. d4 {[%clk 0:02:55.3]}
2... d5 {[%clk 0:03:01.8]} 3. f3 {[%clk 0:02:56.1]} 3... g6 {[%clk 0:03:01.4]}
4. c3 {[%clk 0:02:53.4]} 4... Bg7 {[%clk 0:03:00.5]} 5. Na3 {[%clk 0:02:53.9]}
5... dxe4 {[%clk 0:02:59.5]} 6. fxe4 {[%clk 0:02:54.8]} 6... Nf6 {[%clk
0:02:59.8]} 7. Bd3 {[%clk 0:02:50.5]} 7... e5 {[%clk 0:02:58]} 8. Ne2 {[%clk
0:02:50.2]} 8... O-O {[%clk 0:02:56.1]} 9. O-O {[%clk 0:02:49.6]} 9... h6 {[%clk
0:02:46.4]} 10. Nc4 {[%clk 0:02:41.2]} 10... exd4 {[%clk 0:02:41.3]} 11. cxd4
{[%clk 0:02:42.1]} 11... Bg4 {[%clk 0:02:31.8]} 12. e5 {[%clk 0:02:30.1]} 12...
Nd5 {[%clk 0:02:24.1]} 13. Nd6 {[%clk 0:02:30.4]} 13... c5 {[%clk 0:02:08.8]}
14. Qb3 {[%clk 0:02:19.3]} 14... Be6 {[%clk 0:01:28.3]} 15. Bc4 {[%clk
0:02:17.6]} 15... Nc7 {[%clk 0:01:26.4]} 16. d5 {[%clk 0:01:51.7]} 16... Bxe5
{[%clk 0:01:12.8]} 17. Nxb7 {[%clk 0:01:41.5]} 17... Qh4 {[%clk 0:00:58.8]} 18.
g3 {[%clk 0:01:34.2]} 18... Qe4 {[%clk 0:00:46.9]} 19. dxe6 {[%clk 0:01:29.9]}
19... Nc6 {[%clk 0:00:33.4]} 20. exf7+ {[%clk 0:01:23]} 20... Kg7 {[%clk
0:00:33.4]} 21. Qe3 {[%clk 0:01:09.1]} 21... Qg4 {[%clk 0:00:20]} 22. Qxh6#
{[%clk 0:00:54.5]} 1-0

[Event "Late-Titled-Tuesday-Blitz-October-24-2023"]
[Site "Chess.com"]
[Date "2023.10.24"]
[Round "11"]
[White "Veleamater"]
[Black "lluiss"]
[Result "1-0"]
[WhiteElo "2311"]
[BlackElo "2198"]
[TimeControl "180+1"]
[EndTime "16:05:35 PDT"]
[Termination "Veleamater won by resignation"]

1. g3 {[%clk 0:03:00.9]} 1... d5 {[%clk 0:02:58.8]} 2. Bg2 {[%clk 0:03:01.8]}
2... Nf6 {[%clk 0:02:58.8]} 3. d3 {[%clk 0:03:02.7]} 3... g6 {[%clk 0:02:58.5]}
4. Nf3 {[%clk 0:03:03.6]} 4... Bg7 {[%clk 0:02:58.8]} 5. O-O {[%clk 0:03:04.5]}
5... O-O {[%clk 0:02:59]} 6. Nc3 {[%clk 0:03:05.4]} 6... c5 {[%clk 0:02:58.7]}
7. e4 {[%clk 0:03:06.3]} 7... Nc6 {[%clk 0:02:58.3]} 8. h3 {[%clk 0:03:06.3]}
8... h6 {[%clk 0:02:58.3]} 9. Bf4 {[%clk 0:03:04.8]} 9... Be6 {[%clk 0:02:57.7]}
10. Ne5 {[%clk 0:03:04.1]} 10... Rc8 {[%clk 0:02:44.3]} 11. Nxc6 {[%clk
0:03:03.7]} 11... Rxc6 {[%clk 0:02:44]} 12. g4 {[%clk 0:03:04.5]} 12... Rc8
{[%clk 0:02:30]} 13. f3 {[%clk 0:02:59]} 13... d4 {[%clk 0:02:22]} 14. Ne2
{[%clk 0:02:58.4]} 14... Nd7 {[%clk 0:02:22.1]} 15. b3 {[%clk 0:02:56.5]} 15...
Kh7 {[%clk 0:02:13.5]} 16. Bd2 {[%clk 0:02:54.3]} 16... Ne5 {[%clk 0:02:06.2]}
17. f4 {[%clk 0:02:54.1]} 17... Nc6 {[%clk 0:02:04.8]} 18. f5 {[%clk 0:02:53.4]}
18... Bd7 {[%clk 0:02:04.5]} 19. g5 {[%clk 0:02:51.5]} 19... h5 {[%clk
0:02:00.8]} 20. Ng3 {[%clk 0:02:51.3]} 20... Be5 {[%clk 0:01:58.6]} 21. Nxh5
{[%clk 0:02:51]} 21... gxh5 {[%clk 0:01:53.2]} 22. Qxh5+ {[%clk 0:02:50.4]}
22... Kg8 {[%clk 0:01:44.7]} 23. a3 {[%clk 0:02:47.8]} 23... Be8 {[%clk
0:01:27.3]} 24. h4 {[%clk 0:02:46.8]} 24... Bg7 {[%clk 0:01:24.3]} 25. e5 {[%clk
0:02:31.3]} 25... Nxe5 {[%clk 0:01:23.8]} 26. Be4 {[%clk 0:02:30.8]} 26... Ng6
{[%clk 0:00:53]} 27. fxg6 {[%clk 0:02:28.5]} 27... fxg6 {[%clk 0:00:52.9]} 28.
Rxf8+ {[%clk 0:02:28.2]} 28... Kxf8 {[%clk 0:00:32.4]} 29. Rf1+ {[%clk
0:02:26.5]} 29... Kg8 {[%clk 0:00:32.5]} 30. Bxg6 {[%clk 0:02:26.6]} 30... Bxg6
{[%clk 0:00:31.9]} 31. Qxg6 {[%clk 0:02:26.9]} 31... Qd5 {[%clk 0:00:30.7]} 32.
h5 {[%clk 0:02:24.9]} 32... Qd6 {[%clk 0:00:26.1]} 33. Qxd6 {[%clk 0:02:18.7]}
33... exd6 {[%clk 0:00:26.2]} 34. h6 {[%clk 0:02:19.3]} 34... Be5 {[%clk
0:00:25.4]} 35. g6 {[%clk 0:02:19.3]} 35... Rf8 {[%clk 0:00:21.5]} 36. Rxf8+
{[%clk 0:02:18.2]} 36... Kxf8 {[%clk 0:00:21.1]} 37. Kg2 {[%clk 0:02:18.9]}
37... Ke7 {[%clk 0:00:18.3]} 38. Kf3 {[%clk 0:02:19]} 38... Kf6 {[%clk
0:00:18.1]} 39. g7 {[%clk 0:02:18]} 39... Kf7 {[%clk 0:00:17.9]} 40. Kg4 {[%clk
0:02:17.6]} 40... Bxg7 {[%clk 0:00:08.4]} 41. hxg7 {[%clk 0:02:17]} 41... Kxg7
{[%clk 0:00:09.3]} 42. Bf4 {[%clk 0:02:16]} 42... d5 {[%clk 0:00:08.3]} 43. Bd6
{[%clk 0:02:12.6]} 43... c4 {[%clk 0:00:07.3]} 44. Be5+ {[%clk 0:02:12.2]} 44...
Kf7 {[%clk 0:00:06.4]} 45. Bxd4 {[%clk 0:02:12.4]} 45... b5 {[%clk 0:00:04.8]}
46. Bxa7 {[%clk 0:02:11]} 46... Ke6 {[%clk 0:00:05.7]} 47. Kf4 {[%clk
0:02:10.3]} 47... Kd6 {[%clk 0:00:05.3]} 48. d4 {[%clk 0:02:08.2]} 1-0